bitfinex/quotes_ETHUSD_20260125
["timestamp","ask_amount","ask_price","bid_price","bid_amount"]
[1769306897275,0.84640398,2957.2,2956.3,1.32462311]
[1769306897473,1.55440398,2957.2,2956.3,1.31959263]
[1769306897781,0.70900402,2957.2,2956.3,1.31959263]
[1769306897981,1.55440097,2957.2,2956.3,1.31959263]
[1769306899663,0.70900402,2957.2,2956.3,1.31959263]
[1769306904086,1.55439996,2957.2,2956.3,1.31959263]
[1769306904661,1.3390127,2957.1,2956.3,1.31959263]
[1769306904861,0.002,2957.0,2956.3,1.31959263]
[1769306906691,0.002,2957.0,2956.1,2.33680576]
[1769306907062,0.002,2957.0,2956.1,1.32210787]
[1769306917503,0.002,2957.0,2956.3,0.001]
[1769306920302,0.002,2957.0,2956.3,1.32310787]
[1769306922804,0.708,2956.9,2956.3,1.32310787]
[1769306923276,0.91290174,2956.9,2956.3,1.32310787]
[1769306928121,1.75838198,2956.9,2956.3,1.32310787]
[1769306928581,0.002,2956.8,2956.3,1.32310787]
[1769306934311,0.002,2956.8,2955.8,0.001]
[1769306934614,3.50059082,2956.6,2955.9,1.26023136]
[1769306934819,0.35005908,2956.5,2955.9,1.26023136]
[1769306937790,0.84554314,2956.7,2955.9,1.26023136]
[1769306939900,0.84750865,2956.8,2955.9,1.26023136]
[1769306940928,0.84750865,2956.8,2956.1,1.26123136]
[1769306941112,0.002,2956.6,2956.1,1.26123136]
[1769306953445,0.002,2956.6,2956.3,0.001]
[1769306953742,0.002,2956.4,2956.1,1.26123136]
[1769306958250,0.002,2956.4,2956.1,1.25901057]
[1769306958425,0.002,2956.4,2956.1,1.23621743]
[1769306958615,0.002,2956.4,2956.1,1.21617074]
[1769306958821,0.002,2956.4,2956.1,1.19166703]
[1769306959052,0.002,2956.4,2956.1,1.1671609]
[1769306959239,0.002,2956.4,2956.1,1.1448805]
[1769306959435,0.002,2956.4,2956.1,1.1225981]
[1769306959641,0.002,2956.4,2956.1,1.1003137]
[1769306959947,0.002,2956.4,2956.1,1.06465448]
[1769306960120,0.002,2956.4,2956.1,1.0401357]
[1769306960320,0.002,2956.4,2956.1,1.01338518]
[1769306960548,0.002,2956.4,2956.1,0.98886134]
[1769306960727,0.002,2956.4,2956.1,0.96433508]
[1769306960926,0.002,2956.4,2956.1,0.9398064]
[1769306961120,0.002,2956.4,2956.1,0.9152753]
[1769306961320,0.002,2956.4,2956.1,0.89074178]
[1769306961529,0.002,2956.4,2956.1,0.86620584]
[1769306961845,0.002,2956.4,2956.1,0.83051275]
[1769306962045,0.002,2956.4,2956.1,0.80597076]
[1769306962247,0.002,2956.4,2956.1,0.78142635]
[1769306962451,0.002,2956.4,2956.1,0.75911115]
[1769306962647,0.002,2956.4,2956.1,0.73679395]
[1769306962820,0.002,2956.4,2956.1,0.71224272]
[1769306963015,0.002,2956.4,2956.1,0.68992132]
[1769306963241,0.002,2956.4,2956.1,0.66536542]
[1769306963450,0.002,2956.4,2956.1,0.64080704]
[1769306963634,0.002,2956.4,2956.1,0.62071202]
[1769306963835,0.002,2956.4,2956.1,0.60508144]
[1769306964030,0.002,2956.4,2956.1,0.58051712]
[1769306964231,0.002,2956.4,2956.1,0.57381734]
[1769306966054,0.002,2956.2,2956.1,0.57381734]
[1769306988171,0.002,2956.2,2955.9,1.03675625]
[1769307000369,0.002,2956.2,2956.1,0.001]
[1769307001077,0.002,2956.2,2955.8,0.001]
[1769307001398,0.26007929,2956.1,2955.4,0.001]
[1769307001596,0.25907929,2955.8,2955.2,0.001]
[1769307002595,1.10489855,2955.8,2955.2,0.001]
[1769307002994,0.2569294,2955.7,2955.2,0.001]
[1769307003494,0.25587294,2955.5,2954.4,0.94971027]
[1769307003692,0.37563624,2955.4,2954.4,0.94971027]
[1769307005888,1.22154717,2955.4,2954.4,0.94971027]
[1769307006393,0.37563624,2955.4,2954.4,0.94971027]
[1769307006884,1.22155023,2955.4,2954.4,0.94971027]
[1769307007067,0.37563624,2955.4,2954.4,0.94971027]
[1769307007266,1.22154635,2955.4,2954.4,0.94971027]
[1769307007788,0.37563624,2955.4,2954.4,0.94971027]
[1769307007994,1.22155488,2955.4,2954.4,0.94971027]
[1769307008297,1.47232478,2955.4,2954.4,0.94971027]
[1769307009483,0.73537509,2955.3,2954.4,0.94971027]
[1769307009659,0.24978419,2955.2,2954.4,0.94971027]
[1769307010797,0.24978419,2955.2,2954.0,0.94971027]
[1769307011713,1.09384166,2955.1,2954.0,0.94971027]
[1769307012186,0.24784661,2955.1,2954.0,0.94971027]
[1769307012495,1.00962402,2955.1,2954.0,0.94971027]
[1769307012797,0.76177741,2955.1,2954.3,0.97016171]
[1769307014700,0.84796954,2955.2,2954.3,0.96677692]
[1769307016599,0.002,2955.2,2954.3,0.96677692]
[1769307024783,0.002,2955.0,2954.3,0.96677692]
[1769307026326,0.002,2955.4,2954.5,0.97016171]
[1769307026525,0.002,2955.4,2954.7,0.97016171]
[1769307033310,0.002,2955.4,2954.9,0.93235719]
[1769307035615,0.002,2955.4,2955.0,0.03384094]
[1769307035913,0.002,2955.4,2955.1,0.93235719]
[1769307036414,0.002,2955.2,2955.1,0.93235719]
[1769307051938,0.002,2955.4,2954.8,0.93235719]
[1769307052142,7.09861715,2956.1,2954.8,0.96620042]
[1769307052143,0.709,2955.8,2954.8,0.96620042]
[1769307052307,0.709,2955.8,2955.0,0.93235719]
[1769307055646,6.25289382,2956.1,2955.0,0.93235719]
[1769307055647,6.25289382,2956.1,2955.1,0.96619699]
[1769307055816,0.002,2956.2,2955.2,0.93235719]
[1769307056137,0.002,2956.2,2955.3,0.93235719]
[1769307056138,0.709,2956.1,2955.3,0.93235719]
[1769307059443,0.002,2955.9,2955.3,0.93235719]
[1769307071244,0.002,2955.7,2955.3,0.93235719]
[1769307071557,0.002,2955.7,2955.5,0.92877056]
[1769307071757,0.002,2955.7,2955.6,0.96260463]
[1769307072529,0.002,2955.7,2955.6,0.92877056]
[1769307083566,0.002,2955.7,2955.3,0.93696984]
[1769307087071,0.002,2955.7,2955.2,0.001]
[1769307087072,0.002,2955.7,2955.5,0.93696984]
[1769307087368,0.002,2955.7,2955.6,0.03383407]
[1769307090168,0.002,2955.7,2955.5,0.93696984]
[1769307091875,0.002,2955.7,2955.6,0.03383407]
[1769307096647,0.002,2955.7,2955.5,0.93696984]
[1769307104980,0.002,2955.7,2955.3,0.9989324]
[1769307107889,0.002,2955.5,2955.3,0.9989324]
[1769307130481,0.002,2955.7,2955.5,0.92607655]
[1769307141028,0.002,2955.7,2955.3,1.00888764]
[1769307141827,0.002,2955.5,2955.3,1.00888764]
[1769307159032,0.002,2955.5,2955.2,0.001]
[1769307160238,0.002,2955.5,2955.2,0.26652949]
[1769307165044,0.002,2955.5,2955.4,0.001]
[1769307166319,0.002,2955.5,2955.0,1.74139846]
[1769307166320,0.19080173,2955.5,2955.0,1.5525959]
[1769307177954,0.002,2955.5,2955.0,1.5525959]
[1769307178163,0.002,2955.3,2955.0,1.5525959]
[1769307181335,0.002,2955.3,2954.7,1.00623323]
[1769307187460,0.002,2955.3,2954.3,1.00623323]
[1769307190269,0.002,2955.3,2954.9,0.001]
[1769307190446,0.002,2955.3,2954.4,1.00623323]
[1769307190755,0.002,2955.1,2954.4,1.00623323]
[1769307197370,0.002,2955.1,2954.4,1.00284732]
[1769307198373,0.35250892,2955.1,2954.2,1.00554028]
[1769307202965,0.35250892,2955.1,2954.4,0.001]
[1769307204260,0.35250892,2955.1,2954.4,1.00554028]
[1769307210592,0.002,2955.1,2954.4,1.00554028]
[1769307210900,0.711,2955.1,2954.6,1.00454028]
[1769307211197,0.711,2955.1,2954.7,0.03384438]
[1769307213882,0.711,2955.1,2954.7,1.00454028]
[1769307214494,0.002,2954.9,2954.7,1.00454028]
[1769307224499,0.70961602,2955.1,2954.7,1.00454028]
[1769307228100,0.002,2954.9,2954.7,1.00454028]
[1769307229599,0.002,2954.9,2954.8,1.03838351]
[1769307229897,0.70961602,2955.1,2954.9,1.00354028]
[1769307229898,0.60667934,2955.1,2954.9,1.00354028]
[1769307230082,0.002,2955.5,2954.7,0.99322652]
[1769307230473,0.002,2955.5,2954.8,0.03384323]
[1769307230675,0.002,2955.5,2954.9,0.99322652]
[1769307234313,0.002,2955.5,2955.1,0.99322652]
[1769307237181,0.002,2955.7,2955.2,0.99322652]
[1769307240010,0.002,2955.3,2955.2,0.99322652]
[1769307243999,0.002,2955.9,2955.3,0.96578834]
[1769307244203,0.002,2955.9,2955.5,0.96578834]
[1769307248728,0.002,2955.9,2955.5,0.99962356]
[1769307248926,0.002,2955.9,2955.5,0.96578834]
[1769307251916,0.002,2955.9,2955.7,0.001]
[1769307258785,0.002,2955.9,2955.7,0.03483293]
[1769307260993,0.002,2955.9,2955.7,0.001]
[1769307279131,0.002,2955.9,2955.3,0.98988125]
[1769307279534,4.1137612,2955.9,2955.1,0.99088125]
[1769307279732,0.41137612,2955.8,2955.1,0.99088125]
[1769307280435,0.41137612,2955.8,2955.1,0.001]
[1769307281253,4.1137612,2955.9,2955.1,0.001]
[1769307285068,0.61050649,2955.8,2955.1,0.001]
[1769307286937,0.002,2955.9,2955.1,0.99088125]
[1769307287139,0.002,2955.9,2955.3,0.99088125]
[1769307287562,0.002,2955.7,2955.3,0.99088125]
[1769307289348,0.002,2955.7,2955.4,0.03383636]
[1769307289552,0.002,2955.7,2955.4,0.98988125]
[1769307292761,0.002,2955.7,2955.5,0.03383522]
[1769307293374,0.002,2955.7,2955.4,0.98988125]
[1769307298985,0.002,2955.7,2955.6,0.001]
[1769307323338,0.7113672,2955.7,2955.1,0.001]
[1769307323626,3.50104601,2955.6,2955.1,0.001]
[1769307323837,0.42124132,2955.5,2955.1,0.001]
[1769307332925,0.42124132,2955.5,2955.3,0.001]
[1769307333130,0.42124132,2955.5,2955.1,0.001]
[1769307333819,0.002,2955.7,2955.1,0.95968083]
[1769307340057,0.711,2955.7,2955.1,0.95968083]
[1769307344656,0.711,2955.7,2955.3,0.001]
[1769307344819,0.002,2955.5,2955.3,0.001]
[1769307347533,0.002,2955.5,2955.1,0.001]
[1769307347951,0.5081697,2955.5,2955.1,0.001]
[1769307356567,0.5081697,2955.5,2955.3,0.001]
[1769307356770,0.5081697,2955.5,2955.1,0.001]
[1769307363298,0.4834073,2955.5,2955.1,0.001]
[1769307366953,0.70861211,2955.3,2954.4,0.97429901]
[1769307367154,3.50287347,2955.0,2954.4,0.001]
[1769307367377,4.21148558,2955.3,2954.4,0.97429901]
[1769307368699,4.21148558,2955.3,2954.6,0.001]
[1769307368901,5.0594438,2955.3,2954.6,0.001]
[1769307380323,0.84794059,2955.3,2954.6,0.92351875]
[1769307380630,0.18212396,2955.2,2954.6,0.92013477]
[1769307380781,0.002,2955.1,2954.6,0.92013477]
[1769307380982,0.709,2955.0,2954.6,0.92013477]
[1769307392428,0.002,2954.8,2954.6,0.92013477]
[1769307398937,0.711,2955.0,2954.5,0.90039858]
[1769307404543,0.002,2954.8,2954.5,0.90039858]
[1769307416320,0.002,2954.8,2954.7,0.001]
[1769307417755,0.002,2954.8,2954.4,0.001]
[1769307422456,0.002,2954.8,2954.4,0.90139858]
[1769307422831,0.002,2954.8,2954.4,0.001]
[1769307423135,0.002,2954.8,2954.4,0.97161957]
[1769307428143,0.002,2954.8,2954.6,0.001]
[1769307432868,0.002,2954.8,2954.4,0.97161957]
[1769307433059,0.002,2954.8,2954.4,0.001]
[1769307437282,0.002,2954.8,2954.2,0.001]
[1769307439665,0.002,2954.8,2954.6,0.001]
[1769307439871,0.002,2954.8,2954.2,0.001]
[1769307441858,0.002,2954.8,2954.2,0.99382133]
[1769307451382,0.002,2954.8,2954.4,0.001]
[1769307451679,0.002,2954.6,2954.2,0.99382133]
[1769307451866,0.002,2954.6,2954.2,1.26267631]
[1769307463990,0.002,2954.6,2954.4,0.001]
[1769307464169,0.002,2954.4,2954.2,0.99382133]
[1769307489136,0.002,2954.4,2954.2,0.001]
[1769307533528,0.002,2954.6,2954.3,0.90637652]
[1769307533727,0.002,2954.6,2954.4,0.94022434]
[1769307533908,0.002,2954.8,2954.5,0.90637652]
[1769307534316,0.002,2955.0,2954.6,0.90637652]
[1769307536432,0.002,2955.0,2954.6,1.08511579]
[1769307538235,0.002,2955.0,2954.7,0.9402209]
[1769307545652,0.002,2955.1,2954.8,0.93108772]
[1769307545952,0.002,2955.5,2955.0,0.93108772]
[1769307551355,0.002,2955.5,2955.0,1.77710619]
[1769307551559,0.002,2955.5,2955.1,0.17771062]
[1769307559562,0.002,2955.5,2955.2,0.001]
[1769307559872,0.002,2955.3,2955.2,0.001]
[1769307561970,0.00061648,2955.5,2955.2,0.001]
[1769307571359,0.00061648,2955.5,2955.4,0.001]
[1769307575068,0.00061648,2955.5,2955.2,0.001]
[1769307582919,0.00061648,2955.5,2955.4,0.001]
[1769307586879,0.00061648,2955.5,2955.2,0.001]
[1769307595120,0.00061648,2955.5,2955.4,0.001]
[1769307611445,0.00061648,2955.5,2954.7,3.41828184]
[1769307611446,0.71759185,2955.5,2954.5,1.83522815]
[1769307611742,0.71759185,2955.5,2954.6,1.17269123]
[1769307612248,0.71597409,2955.4,2954.4,0.001]
[1769307613223,0.708,2955.3,2954.4,0.001]
[1769307613435,0.71597346,2955.2,2954.4,0.001]
[1769307618356,0.71597346,2955.2,2954.6,0.001]
[1769307618645,0.71597346,2955.2,2954.4,0.001]
[1769307619147,0.71597346,2955.2,2954.3,2.66341054]
[1769307619565,0.708,2955.3,2954.4,0.95333377]
[1769307621158,0.71596985,2955.4,2954.4,0.95333377]
[1769307621335,0.709,2955.3,2954.4,0.95333377]
[1769307629863,0.002,2955.1,2954.4,0.95333377]
[1769307641893,0.002,2954.9,2954.4,0.95333377]
[1769307664631,0.002,2954.7,2954.4,0.95333377]
[1769307676707,0.002,2954.5,2954.4,0.95333377]
[1769307694744,0.002,2954.5,2954.2,0.90477794]
[1769307695248,0.002,2954.5,2954.2,1.75102625]
[1769307695447,0.002,2954.5,2954.2,2.26803718]
[1769307695848,0.002,2954.5,2954.2,1.42178887]
[1769307696330,0.002,2954.5,2954.2,2.26803835]
[1769307698049,0.002,2954.5,2954.2,1.42178887]
[1769307698244,0.002,2954.5,2954.2,1.75102907]
[1769307698438,0.002,2954.5,2954.2,0.90477794]
[1769307699650,0.002,2954.3,2954.2,0.90477794]
[1769307703052,0.002,2954.3,2954.2,0.001]
[1769307728677,0.002,2954.3,2953.8,0.001]
[1769307729059,0.002,2954.3,2953.8,0.9102178]
[1769307730284,0.002,2954.3,2953.8,0.001]
[1769307734389,0.002,2954.3,2954.0,0.001]
[1769307734590,0.002,2954.3,2953.8,0.001]
[1769307738691,0.002,2954.3,2953.6,0.96171871]
[1769307741066,0.56787971,2954.3,2953.6,0.96171871]
[1769307742500,1.41413017,2954.3,2953.6,0.96171871]
[1769307745508,0.56787971,2954.3,2953.6,0.96171871]
[1769307745670,0.002,2954.3,2953.6,0.96171871]
[1769307745871,0.002,2954.3,2953.8,0.002]
[1769307746270,0.001,2954.1,2953.8,0.002]
[1769307759831,0.001,2953.9,2953.8,0.002]
[1769307760162,0.001,2953.9,2953.6,0.91371871]
[1769307771957,0.001,2953.9,2953.8,0.002]
[1769307786570,0.001,2953.9,2953.6,0.91371871]
[1769307797302,0.001,2953.9,2953.8,0.002]
[1769307797499,0.001,2953.9,2953.6,0.91371871]
[1769307798000,0.13642084,2953.9,2953.5,0.002]
[1769307799301,0.13642084,2953.9,2953.5,0.91896219]
[1769307809218,0.13642084,2953.9,2953.7,0.002]
[1769307809417,0.13642084,2953.9,2953.5,0.91896219]
[1769307821127,0.13642084,2953.9,2953.7,0.002]
[1769307821309,0.13642084,2953.9,2953.5,0.91896219]
[1769307821509,0.001,2953.7,2953.5,0.91896219]
[1769307851624,0.001,2953.9,2953.5,0.91896219]
[1769307851625,0.002,2954.3,2953.6,0.91013574]
[1769307851830,0.002,2954.3,2953.6,1.04655658]
[1769307852210,0.002,2954.3,2953.7,0.90776837]
[1769307857844,0.002,2954.3,2953.7,0.90976837]
[1769307858147,0.001,2954.1,2953.7,0.90976837]
[1769307858352,0.001,2954.1,2953.8,1.34928508]
[1769307860414,0.00161511,2954.5,2953.8,1.34928508]
[1769307860614,0.00161511,2954.5,2953.8,0.90776837]
[1769307867130,0.00161511,2954.5,2954.0,0.90776837]
[1769307869538,0.00161511,2954.5,2954.0,0.90976837]
[1769307881673,0.00161511,2954.5,2954.2,0.001]
[1769307894508,0.90195719,2954.5,2954.0,0.002]
[1769307898700,0.00161511,2954.5,2954.0,0.002]
[1769307905216,0.00161511,2954.5,2954.2,0.001]
[1769307905512,0.17662308,2954.5,2954.0,0.002]
[1769307906284,0.00161511,2954.5,2954.0,0.002]
[1769307916626,0.00161511,2954.5,2954.2,0.001]
[1769307916926,0.002,2954.3,2954.2,0.001]
[1769307934840,0.00161511,2954.5,2954.2,0.001]
[1769307935932,0.00161511,2954.5,2954.2,0.13839975]
[1769307936130,0.00161511,2954.5,2954.2,0.001]
[1769307936636,0.00161511,2954.5,2954.2,0.99159395]
[1769307939642,0.002,2954.3,2954.2,0.99159395]
[1769307939846,0.002,2954.3,2954.2,1.18949879]
[1769307951225,0.002,2954.3,2954.2,0.99159395]
[1769307964639,0.002,2954.3,2954.2,0.001]
[1769307980787,0.002,2954.3,2954.0,0.13739975]
[1769307986292,0.002,2954.3,2954.0,0.002]
[1769307986490,0.002,2954.3,2954.2,0.001]
[1769307996068,0.002,2954.3,2954.0,0.002]
[1769307998198,0.002,2954.3,2953.8,0.002]
[1769308008720,0.52784031,2954.3,2953.8,0.002]
[1769308009522,0.52784031,2954.3,2954.0,0.001]
[1769308010825,0.52784031,2954.3,2953.8,0.002]
[1769308014314,0.002,2954.3,2953.8,0.002]
[1769308021143,0.002,2954.3,2954.0,0.001]
[1769308021344,0.002,2954.1,2954.0,0.001]
[1769308028152,0.002,2954.1,2953.8,0.002]
[1769308033061,0.002,2954.1,2954.0,0.001]
[1769308033654,0.002,2954.1,2953.8,0.002]
[1769308035164,0.002,2954.1,2953.8,0.001]
[1769308035667,0.002,2954.1,2953.8,2.01e-06]
[1769308045092,0.002,2953.9,2953.8,2.01e-06]
[1769308059811,0.002,2953.9,2953.5,0.002]
[1769308060304,0.13744331,2953.9,2953.5,0.002]
[1769308060507,0.002,2954.1,2953.6,0.98106868]
[1769308067817,0.002,2954.1,2953.8,0.001]
[1769308067994,0.002,2953.9,2953.8,0.001]
[1769308070020,0.002,2953.9,2953.5,0.002]
[1769308075490,0.17716367,2953.9,2953.5,0.002]
[1769308077539,0.002,2953.9,2953.5,0.002]
[1769308080219,0.002,2953.9,2953.5,0.98306868]
[1769308083522,0.002,2953.9,2953.5,0.97968379]
[1769308083729,0.002,2953.9,2953.3,1.16902088]
[1769308084623,0.002,2953.9,2953.3,2.15007857]
[1769308091233,0.002,2953.9,2953.3,1.16902088]
[1769308091234,0.17730303,2953.9,2953.3,1.16902088]
[1769308091402,1.0236476,2953.9,2953.3,1.16902088]
[1769308092318,1.0236476,2953.9,2953.5,0.001]
[1769308092504,1.0236476,2953.9,2953.2,0.002]
[1769308092505,0.001,2953.7,2953.2,0.002]
[1769308092705,0.001,2953.7,2953.3,0.002]
[1769308102953,4.40921571,2953.7,2952.8,0.94706074]
[1769308103126,1.84778404,2953.6,2952.8,0.94706074]
[1769308103435,0.53542765,2953.5,2952.8,0.94706074]
[1769308103841,1.55139355,2953.5,2952.8,0.94706074]
[1769308104214,0.53542765,2953.5,2952.8,0.94706074]
[1769308104544,1.0159659,2953.4,2952.8,0.94706074]
[1769308105043,1.86246795,2953.4,2953.0,0.002]
[1769308105225,0.23978956,2953.3,2952.8,0.94706074]
[1769308105624,0.23978956,2953.3,2952.8,0.94906074]
[1769308107342,1.86246795,2953.4,2952.8,0.94906074]
[1769308108043,1.86246795,2953.4,2952.8,0.002]
[1769308117675,0.84650205,2953.4,2953.0,0.002]
[1769308117837,1.01603816,2953.3,2952.8,0.9336308]
[1769308129381,1.01603816,2953.3,2953.0,0.002]
[1769308129584,0.001,2953.2,2952.8,0.9336308]
[1769308131200,0.001,2953.2,2952.8,0.002]
[1769308131201,3.50714338,2952.9,2952.8,0.002]
[1769308131399,4.40786664,2952.9,2952.1,0.00100301]
[1769308131572,0.709,2953.0,2952.1,0.93263381]
[1769308131776,0.26257614,2952.9,2952.1,0.93263381]
[1769308132079,1.27871754,2952.9,2952.1,0.93263381]
[1769308133392,2.12535628,2952.9,2952.1,0.93263381]
[1769308134195,1.27871754,2952.9,2952.1,0.93263381]
[1769308134808,2.1253464,2952.9,2952.1,0.93263381]
[1769308134999,0.28343464,2952.8,2952.1,0.93263381]
[1769308141585,1.13009276,2952.8,2952.1,0.93263381]
[1769308142007,0.28343464,2952.8,2952.1,0.93263381]
[1769308142894,1.13009058,2952.8,2952.1,0.93263381]
[1769308144910,2.03081382,2952.8,2952.1,0.00100301]
[1769308145096,1.14160405,2952.7,2952.1,0.00100301]
[1769308145281,1.1951746,2952.7,2952.1,0.00100301]
[1769308145796,0.24088081,2952.7,2952.1,0.00100301]
[1769308147401,1.08757172,2952.7,2952.1,0.00100301]
[1769308147608,0.23253001,2952.6,2952.1,0.00100301]
[1769308153013,0.23353001,2952.6,2952.1,0.00100301]
[1769308156415,1.08024343,2952.6,2952.1,0.00100301]
[1769308156915,0.23353001,2952.6,2952.1,0.00100301]
[1769308160323,0.23353001,2952.6,2952.1,0.99420246]
[1769308163422,0.94253001,2952.6,2952.1,0.99420246]
[1769308164423,0.23353001,2952.6,2952.1,0.99420246]
[1769308164624,0.001,2952.4,2952.1,0.99420246]
[1769308188031,0.001,2952.2,2952.1,0.99420246]
[1769308198635,0.001,2952.2,2952.1,0.00100301]
[1769308219676,0.001,2953.0,2952.2,0.93779022]
[1769308219985,0.001,2953.0,2952.5,0.93779022]
[1769308222770,0.001,2952.8,2952.5,0.93779022]
[1769308223082,0.001,2953.0,2952.5,0.93779022]
[1769308225788,0.001,2953.0,2952.3,1.38255552]
[1769308226100,0.001,2953.0,2952.4,0.93779022]
[1769308232694,0.001,2953.0,2952.6,0.93779022]
[1769308232865,0.001,2953.0,2952.7,0.0338673]
[1769308233467,0.001,2953.0,2952.6,0.93779022]
[1769308234300,0.001,2953.0,2952.6,0.93979022]
[1769308234698,0.001,2952.8,2952.6,0.93979022]
[1769308235196,0.00061362,2953.5,2952.7,0.0338673]
[1769308235369,0.17497615,2953.4,2952.6,0.93979022]
[1769308239301,0.84706731,2953.5,2952.6,0.93979022]
[1769308241676,0.00061362,2953.5,2952.6,0.93979022]
[1769308243119,0.70961362,2953.5,2952.7,0.9990098]
[1769308246602,0.70961362,2953.5,2952.8,0.002]
[1769308246797,0.70961362,2953.5,2952.8,0.96714251]
[1769308246992,0.70961362,2953.5,2952.8,1.00100867]
[1769308247193,0.70961362,2953.5,2952.8,0.96714251]
[1769308258323,0.00061362,2953.5,2952.8,0.96714251]
[1769308258617,0.00061362,2953.5,2953.0,0.96714251]
[1769308271839,0.00061362,2953.5,2953.2,0.002]
[1769308295865,0.00061362,2953.5,2953.4,0.002]
[1769308296174,0.00061362,2953.5,2953.2,0.002]
[1769308302684,0.00061362,2953.5,2953.2,0.94476595]
[1769308302887,0.00061362,2953.5,2953.2,0.97862752]
[1769308303101,0.00061362,2953.5,2953.2,0.94476595]
[1769308308790,0.00061362,2953.5,2953.4,0.002]
[1769308309089,0.00061362,2953.5,2953.2,0.94476595]
[1769308315009,0.002,2953.9,2953.3,0.94276595]
[1769308320392,0.002,2953.9,2953.4,0.002]
[1769308320698,0.001,2953.7,2953.4,0.94476595]
[1769308322988,0.00161511,2954.5,2954.0,0.99351764]
[1769308332225,0.00161511,2954.5,2954.2,0.92702512]
[1769308332427,0.002,2954.3,2954.2,0.92702512]
[1769308338830,0.00161511,2954.5,2954.3,0.92602512]
[1769308343646,0.00161511,2954.5,2954.4,0.03384782]
[1769308343850,0.00161511,2954.5,2954.3,0.92602512]
[1769308345359,0.00161511,2954.5,2954.4,0.03384782]
[1769308345545,0.00161511,2954.5,2954.4,0.95987294]
[1769308346683,0.13539334,2955.2,2954.7,0.92602512]
[1769308346952,0.84782763,2955.7,2954.9,0.92602512]
[1769308347130,0.92032639,2955.5,2954.6,0.92602512]
[1769308347328,0.91970991,2955.4,2954.2,0.001]
[1769308347529,0.91970991,2955.2,2954.2,0.001]
[1769308348051,0.91970991,2955.2,2954.2,0.92702512]
[1769308353838,1.10364632,2955.3,2954.4,0.9068691]
[1769308355564,0.002,2955.0,2954.4,0.9068691]
[1769308363580,0.002,2955.0,2954.3,0.03384896]
[1769308363744,0.92170991,2955.0,2954.2,0.001]
[1769308366474,0.91970991,2954.9,2954.2,0.001]
[1769308368541,0.91970991,2954.9,2954.4,0.001]
[1769308370542,0.002,2955.0,2954.4,0.001]
[1769308372975,0.84802667,2955.0,2954.4,0.001]
[1769308373355,0.91970991,2954.9,2954.4,0.001]
[1769308373548,1.87605331,2954.9,2954.4,0.001]
[1769308379276,0.9563434,2954.9,2954.4,0.001]
[1769308381189,0.9563434,2954.9,2954.6,0.001]
[1769308381385,0.002,2954.7,2954.4,0.001]
[1769308384587,0.91483327,2954.7,2954.2,0.001]
[1769308384792,1.09547329,2954.7,2954.2,0.001]
[1769308385867,1.94159025,2954.7,2954.2,0.001]
[1769308387098,0.91283327,2954.6,2953.8,0.95791339]
[1769308387794,1.75897992,2954.6,2953.8,0.95791339]
[1769308388000,0.19416199,2954.5,2953.8,0.95791339]
[1769308389069,1.10699526,2954.5,2953.5,0.95791339]
[1769308391010,1.95317265,2954.5,2953.5,0.95791339]
[1769308394510,1.95317265,2954.5,2953.4,1.22176875]
[1769308394511,1.95317265,2954.5,2953.7,0.93144474]
[1769308394807,1.95517265,2954.5,2953.7,0.93144474]
[1769308396910,0.29707293,2954.4,2953.7,0.93144474]
[1769308397310,1.14327003,2954.4,2953.7,0.001]
[1769308397810,1.01566665,2954.3,2953.7,0.001]
[1769308399512,1.86189711,2954.3,2953.7,0.001]
[1769308399809,0.215897,2954.2,2953.7,0.001]
[1769308402884,0.215897,2954.2,2953.5,0.92805836]
[1769308406214,0.002,2954.0,2953.5,0.92805836]
[1769308430650,0.001,2953.8,2953.5,0.92805836]
[1769308443070,0.001,2953.8,2953.4,1.18790947]
[1769308453768,0.001,2953.6,2953.4,1.18790947]
[1769308454670,0.001,2953.6,2953.5,0.97094595]
[1769308454870,0.001,2953.8,2953.5,0.97094595]
[1769308455660,0.002,2954.0,2953.6,1.00480293]
[1769308460271,0.002,2954.2,2953.7,0.97094595]
[1769308463350,0.002,2954.2,2953.5,0.97094595]
[1769308463562,0.002,2954.2,2953.5,1.2165616]
[1769308465574,0.002,2954.2,2953.7,0.002]
[1769308465764,0.001,2954.0,2953.7,0.002]
[1769308475154,0.002,2954.2,2953.7,0.002]
[1769308475363,0.002,2954.2,2953.7,0.98643288]
[1769308478490,0.002,2954.2,2953.8,0.002]
[1769308478660,0.001,2954.0,2953.8,0.002]
[1769308489974,0.001,2954.0,2953.8,0.98643288]
[1769308490184,0.002,2954.2,2953.9,0.98443288]
[1769308490899,0.002,2954.2,2953.9,0.98643288]
[1769308491206,0.001,2954.0,2953.9,0.98643288]
[1769308503200,0.002,2954.5,2954.0,0.99808527]
[1769308503405,0.002,2954.5,2954.2,0.99808527]
[1769308503703,0.002,2954.7,2954.4,0.99808527]
[1769308504227,0.00061476,2954.9,2954.4,0.99808527]
[1769308505300,3.50534729,2954.9,2953.9,1.00008527]
[1769308505514,0.93209629,2954.7,2953.9,0.002]
[1769308512332,0.93209629,2954.7,2953.9,0.98991022]
[1769308512820,0.35073473,2954.8,2953.9,0.98991022]
[1769308513713,0.35073473,2954.8,2953.9,2.19650316]
[1769308513889,10.0,2960.3,2954.7,0.95405668]
[1769308513890,1.77992832,2955.7,2954.7,0.95405668]
[1769308514091,1.77992832,2955.7,2954.0,4.35103602]
[1769308514092,0.93209629,2955.4,2954.4,0.95405668]
[1769308514623,1.94741576,2955.3,2954.4,0.95405668]
[1769308514787,0.19474158,2955.2,2954.4,0.95405668]
[1769308515315,1.01531947,2955.2,2954.4,0.95405668]